Cogmind - Beta 13 @@@ ROGUE MODE // 2024.05.03 @ 11:52:48 Player: AntinDisguise Result: Destroyed by Y-45 Defender with Heavy Assault Rifle Performance ------------- Evolutions (1) 500 Regions Visited (2) 400 Robots Destroyed (32) 160 Value Destroyed (925) 925 Prototype IDs (1) 20 Alien Tech Used (0) 0 Bonus (24) 24 TOTAL SCORE: 2029 Bonus ------- High Alert Combat Kills 24 Cogmind --------- Core Integrity 0/400 Matter 151/300 Energy 100/100 System Corruption 0% Temperature Cool (9) Movement Treading (320) Ox2 Location -9/Materials Parts ------- > --- POWER (1) -------- (None) > --- PROPULSION (2) --- Light Treads Light Treads > --- UTILITY (4) ------ Huge Storage Unit Targeting Computer Backup Plating I Medium Armor Plating > --- WEAPON (2) ------- Mace > --- INVENTORY (25) --- Ion Engine Light Treads Improved Treads Improved Treads High-capacity Storage Unit Huge Storage Unit Mini Grenade Launcher Mini Grenade Launcher Mini Grenade Launcher Peak State ------------ > --- POWER ------------ Ion Engine > --- PROPULSION ------- Armored Wheel Aerolev Unit > --- UTILITY ---------- Heat Sink Huge Storage Unit Weapon Shielding Light Armor Plating > --- WEAPON ----------- EM Shotgun Improved Light Cannon > --- INVENTORY -------- Ion Engine Ion Engine Light Treads Light Treads Light Treads Armored Wheel Huge Storage Unit Improved Terrain Scanner Grenade Launcher [Rating: 16] Favorites ----------- Power Ion Engine Engine Ion Engine Propulsion Armored Wheel Treads Light Treads Wheel Armored Wheel Hover Unit Aerolev Unit Utility Huge Storage Unit Device Heat Sink Storage Huge Storage Unit Processor Targeting Computer Protection Backup Plating I Weapon Mini Grenade Launcher Energy Gun Small Laser Energy Cannon Light EM Pulse Cannon Ballistic Gun Assault Rifle Ballistic Cannon Improved Light Cannon Launcher Mini Grenade Launcher Impact Weapon Mace Build | -11 -10 -9 ------- Run | Yrd Mat Mat Slots Evolved 2 | . . 2 Power . | . . . Propulsion . | . . . Utility 2 | . . 2 Weapon . | . . . Parts Attached 34 | 6 4 24 Power 2 | 1 . 1 Engine 2 | 1 . 1 Core . | . . . Reactor . | . . . Propulsion 8 | 2 . 6 Treads 2 | . . 2 Leg . | . . . Wheel 5 | 2 . 3 Hover 1 | . . 1 Flight . | . . . Utility 15 | 1 3 11 Device 5 | . 2 3 Storage 2 | 1 1 . Processor 1 | . . 1 Hackware . | . . . Protection 7 | . . 7 Artifact . | . . . Weapon 9 | 2 1 6 Energy Gun 2 | 1 . 1 Energy Cannon 1 | . . 1 Ballistic Gun 1 | 1 . . Ballistic Cannon 1 | . . 1 Launcher 3 | . 1 2 Special Weapon . | . . . Impact Weapon 1 | . . 1 Slashing Weapon . | . . . Piercing Weapon . | . . . Special Melee Weapon . | . . . Unidentified Prototypes 1 | . . 1 Parts Lost 17 | . 1 16 Power 2 | . . 2 Propulsion 2 | . . 2 Utility 8 | . 1 7 Weapon 5 | . . 5 Highest Loss Streak 7 | . 1 7 To Critical Strikes . | . . . Average Slot Usage (%) 83 | . 94 80 Engine 8 | . 14 7 Treads 5 | . . 6 Wheel 17 | . 28 13 Device 8 | . 9 8 Storage 11 | . 14 11 Protection 8 | . . 11 Energy Gun 6 | . 14 3 Ballistic Gun 2 | . 12 . Ballistic Cannon 4 | . . 5 Launcher 6 | . 1 8 Impact Weapon 2 | . . 3 Naked Turns . | . . . Heaviest Build 97 | 13 90 97 Greatest Support 40 | 26 26 40 Greatest Overweight (x) 30 | . 3 30 Average Overweight (x) 2 | . . 3 Largest Inventory Capacity 25 | 8 25 25 Average Capacity 21 | 7 10 25 Most Carried 13 | 5 8 13 Average Carried 7 | 2 4 9 Final Capacity 25 | 8 25 25 Final Carried 9 | 3 6 9 Class Distribution -------------------- 100% | Mutant Dominant Class ---------------- Mutant | -10/Materials Mutant | -9/Materials Resources | -11 -10 -9 ----------- Run | Yrd Mat Mat Matter Collected 829 | 203 124 502 Remotely . | . . . Salvage Created 891 | . 181 710 Parts 58 | . 7 51 Haulers Intercepted 2 | . 1 1 Recyclers Shooed 1 | . . 1 Parts Field Recycled . | . . . Retrieved Matter . | . . . Parts Self-Destructed . | . . . Prevented . | . . . Kills | -11 -10 -9 ------- Run | Yrd Mat Mat Combat Hostiles Destroyed 22 | . 3 19 Guns 5 | . 3 2 Cannons 3 | . . 3 AOE 14 | . . 14 Classes Destroyed 10 | . 2 8 Builder 1 | . . 1 Hauler 2 | . 1 1 Recycler 2 | . . 2 Mechanic 1 | . . 1 Operator 1 | . . 1 Watcher 3 | . . 3 Swarmer 3 | . . 3 Grunt 13 | . 3 10 Duelist 1 | . . 1 Sentry 5 | . . 5 Best Kill Streak 5 | . 2 5 Combat Bots Only 4 | . 2 4 Max Kills in Single Turn 3 | . 1 3 Gunslinging . | . . . Exploded 3 | . . 3 Melee . | . . . Uniques/NPCs Destroyed . | . . . Combat | -11 -10 -9 -------- Run | Yrd Mat Mat Hostile Shots Fired 182 | . 14 168 Missed 46 | . 3 43 Damage Taken 1900 | . 125 1775 Core 438 | . 35 403 Absorbed by Shields . | . . . Redirected to Shielding 53 | . . 53 Core Remaining (%) 93 | 100 86 . Volleys Fired 66 | . 22 44 Largest 2 | . 2 2 Hottest 86 | . 70 86 Shots Fired 119 | . 44 75 Gun 54 | . 43 11 Cannon 29 | . . 29 Launcher 36 | . 1 35 Special . | . . . Kinetic 46 | . 21 25 Thermal 22 | . 22 . Explosive 36 | . 1 35 Electromagnetic 15 | . . 15 Robot Hit Streak 16 | . 16 7 Robot Miss Streak 4 | . 4 4 Penetration Max . | . . . Secondary Targets . | . . . Shots Hit Robots 90 | . 31 59 Core Hits 50 | . 8 42 Critical Kills . | . . . Critical Parts Destroyed 2 | . . 2 Critical Strikes 4 | . . 4 Blast 1 | . . 1 Corrupt 1 | . . 1 Smash 2 | . . 2 Melee Attacks 15 | . . 15 Impact 15 | . . 15 Slashing . | . . . Piercing . | . . . Sneak Attacks 3 | . . 3 Combat Hostiles . | . . . Follow-up Attacks . | . . . Damage Inflicted 2606 | . 364 2242 Guns 466 | . 364 102 Cannons 342 | . . 342 Explosions 1469 | . . 1469 Melee 329 | . . 329 Ramming . | . . . Kinetic 464 | . 185 279 Thermal 179 | . 179 . Explosive 1469 | . . 1469 Electromagnetic 165 | . . 165 Impact 329 | . . 329 Slashing . | . . . Piercing . | . . . Highest Corruption . | . . . Average Corruption . | . . . Corruption Purged . | . . . Corruption Blocked . | . . . Overload Shots . | . . . Overflow Damage 109 | . . 109 Projectiles . | . . . Explosions 14 | . . 14 Melee 95 | . . 95 Knockbacks 2 | . . 2 Impact . | . . . Kinetic 2 | . . 2 Secondary . | . . . Self-Inflicted Damage 162 | . . 162 Shots 6 | . . 6 Rammed . | . . . Targets Rammed . | . . . Kicked . | . . . Crushed . | . . . Highest Temperature 91 | . 30 91 Average Temperature 18 | . 19 18 Received Heat Transfer 678 | . 66 612 Siege Activations . | . . . Robots Corrupted . | . . . Combat Hostiles . | . . . Parts Fried 3 | . . 3 Impact Corruptions 4 | . . 4 Robots Melted . | . . . Combat Hostiles . | . . . Parts Melted . | . . . Heat Transferred 400 | . 400 . Parts Sabotaged . | . . . Parts Stolen . | . . . Parts Stripped . | . . . Power Chain Reactions 1 | . . 1 Alert | -11 -10 -9 ------- Run | Yrd Mat Mat Peak Influence 467 | . 136 467 Initial . | . . . Average 180 | . 49 226 Maximum Alert Level 2 | . . 2 Low Security (%) 64 | 100 100 53 Level 1 19 | . . 26 Level 2 15 | . . 20 Level 3 . | . . . Level 4 . | . . . Level 5 . | . . . High Security . | . . . Max Security . | . . . Squads Dispatched 7 | . 3 4 Investigation 3 | . 1 2 Extermination . | . . . Reinforcement 4 | . 2 2 Assault . | . . . Garrison . | . . . Intercept . | . . . Searches Triggered . | . . . Construction Impeded . | . . . Haulers Reinforced . | . . . Active Scanning Responses . | . . . Cargo Convoy Interrupts . | . . . Stealth | -11 -10 -9 --------- Run | Yrd Mat Mat Distress Signals 2 | . 1 1 Communications Jammed . | . . . Distress Signals . | . . . Times Spotted 38 | . 6 32 Peak Tracking Total 6 | . 3 6 Tactical Retreats 1 | . . 1 Traps | -11 -10 -9 ------- Run | Yrd Mat Mat Traps Triggered 3 | . 1 2 Indirectly . | . . . Trap Hack Attempts . | . . . Triggered . | . . . Disarmed . | . . . Reprogrammed . | . . . Reused . | . . . Traps Extracted . | . . . Installed . | . . . Triggered . | . . . Machines | -11 -10 -9 ---------- Run | Yrd Mat Mat Machines Disabled 7 | . 1 6 Max in Single Turn 2 | . 1 2 Machines Repaired . | . . . Machines Dismantled . | . . . Machines Sabotaged . | . . . Overloaded Fab Kills . | . . . Hacking | -11 -10 -9 --------- Run | Yrd Mat Mat Machines Accessed 5 | . 2 3 Terminals 4 | . 1 3 Fabricators . | . . . Repair Stations . | . . . Recycling Units 1 | . 1 . Scanalyzers . | . . . Garrison Access . | . . . Total Hacks 13 | . 5 8 Successful 2 | . 1 1 Failed 11 | . 4 7 Catastrophic 3 | . 1 2 Database Lockouts . | . . . Manual . | . . . Terminals 11 | . 3 8 Fabricators . | . . . Repair Stations . | . . . Recycling Units 2 | . 2 . Scanalyzers . | . . . Garrison Access . | . . . Terminal Hacks 2 | . 1 1 Zone Layout 2 | . 1 1 Fabricator Hacks . | . . . Repair Station Hacks . | . . . Recycling Unit Hacks . | . . . Scanalyzer . | . . . Garrison Access Hacks . | . . . Unauthorized Hacks . | . . . Terminals . | . . . Fabricators . | . . . Repair Stations . | . . . Recycling Units . | . . . Scanalyzers . | . . . Garrison Access . | . . . Data Cores Recovered . | . . . Used . | . . . Hacking Detections 4 | . 2 2 Full Trace Events 2 | . 1 1 Feedback Events . | . . . Feedback Blocked . | . . . Robot Schematics Acquired . | . . . Robots Built . | . . . Authchips . | . . . Time . | . . . Total Robot Build Rating . | . . . Part Schematics Acquired . | . . . Parts Built . | . . . Authchips . | . . . Time . | . . . Total Part Build Rating . | . . . Parts Repaired . | . . . Time . | . . . Parts Recycled . | . . . Recycled Matter . | . . . Retrieved Matter . | . . . Retrieved Components . | . . . Parts Scanalyzed . | . . . Part Schematics Acquired . | . . . Parts Damaged . | . . . Bothacking | -11 -10 -9 ------------ Run | Yrd Mat Mat Used RIF Installer . | . . . Robots Hacked . | . . . Non-combat . | . . . Combat . | . . . Robot Hacks Applied . | . . . Relay Couplers Released . | . . . Fabnet Peak Effective % . | . . . Robots Rewired . | . . . Allies Hacked . | . . . Hacks Repelled . | . . . Allies | -11 -10 -9 -------- Run | Yrd Mat Mat Total Allies . | . . . Largest Group . | . . . Highest-Rated Group . | . . . Highest-Rated Ally . | . . . Total Orders . | . . . Ally Attacks . | . . . Total Damage . | . . . Kills . | . . . Allies Corrupted . | . . . Allies Melted . | . . . Intel | -11 -10 -9 ------- Run | Yrd Mat Mat Robot Analysis Total . | . . . Derelict Logs Recovered . | . . . Drone Launches . | . . . Drone Recoveries . | . . . Exploration | -11 -10 -9 ------------- Run | Yrd Mat Mat Turns Passed 1802 | 45 406 1351 Spaces Moved 822 | 36 247 539 Core 6 | 5 . 1 Treads 107 | . . 107 Legs . | . . . Wheels 709 | 31 247 431 Hover . | . . . Flight . | . . . Fastest Speed 50 | 50 90 135 Average Speed 150 | 83 96 179 Slowest Speed 1550 | 90 135 1550 Overloaded Moves . | . . . Propulsion Burnouts . | . . . Robots Hopped . | . . . Cave-ins Triggered . | . . . Exploration Rate (%) 29 | 3 34 52 Regions Visited 2 Branch Regions . Pre-discovered Areas . | . . . Known Exits Taken . | . . . Unknown Exits Taken 2 | 1 1 . Scrap Searched . | . . . Spaces Dug 17 | . 9 8 Terrain Destroyed 191 | . 9 182 Melee . | . . . Projectile 2 | . . 2 AOE 189 | . 9 180 Terrain Rammed . | . . . Walls Destroyed . | . . . Machines Disabled . | . . . Actions | -11 -10 -9 --------- Run | Yrd Mat Mat Total 1243 | 50 370 823 Wait 259 | . 89 170 Move 820 | 35 246 539 Hop . | . . . Pick Up 40 | 9 7 24 Fast Attach . | . . . Attach 28 | 6 3 19 Detach 2 | . . 2 Swap 6 | . 1 5 Drop 7 | . 2 5 Fire 66 | . 22 44 Melee 15 | . . 15 Ram . | . . . Kick . | . . . Crush . | . . . Escape Stasis . | . . . Rewire . | . . . Trap . | . . . Miscellaneous . | . . . Route ------- -11/Scrapyard -10/Materials (discovered 2 exits: *Mat / [*Min]) -9/Materials (discovered 1 exit: [*Mat]) History --------- Turn | Location | Event 13 | -11/Scrapyard | Discovered new exit (range 16) 46 | -11/Scrapyard | Entered Materials 207 | -10/Materials | Discovered new exit (range 7) 207 | -10/Materials | Discovered new exit (range 13) 313 | -10/Materials | Build established: Mutant 452 | -10/Materials | Entered another Materials area 452 | -9/Materials | Evolved 2 slots: Utility x2 1161 | -9/Materials | Discovered new exit (range 14) 1337 | -9/Materials | Lost 7 parts (1p1n3u2w) 1352 | -9/Materials | Core integrity fell below 50% 1393 | -9/Materials | Core integrity fell below 20% 1413 | -9/Materials | Lost 5 parts (1p1n2u1w) 1803 | -9/Materials | Destroyed by Y-45 Defender with Heavy Assault Rifle Last Messages --------------- K-01 Serf collects debris. U-05 Engineer builds a Wall. K-01 Serf collects debris. U-05 Engineer builds a Wall. K-01 Serf collects debris. U-05 Engineer builds a Wall. Acquired 11 matter. K-01 Serf collects debris. U-05 Engineer lays Concrete. U-05 Engineer builds a Wall. Acquired Targeting Computer. W-16 Scout sends out distress signal. K-01 Serf cleans the Machine. Acquired Med. Armor Plating. Mni. Grenade Launcher destroyed. Destroyed Heat Sink. Y-45 Defender system corrupted by crushing effect. Backup Plating I destroyed. Y-45 Defender IFF system glitched. Y-45 Defender heat damages core (-6). Map ----- +----------------------------------------------------+ | ?????????????????????????????????????????????????? | | ?????????????????????????????????????????????????? | | ?????????????????????????????????????????????????? | | ?????????????????????????????????????????????????? | | ?????????????????????????????????????????????????? | | ?????????????????????????????????????????????????? | | ?????????????????????????????????????????????????? | | ?????????????????????????????????????????????????? | | ?????????????????????????????????????????????????? | | ?????????????????????????????????????????????????? | | ?????????????????????????????????????????????????? | | ?????????????????????????????????????????????????? | | ?????????????????????????????????????????????????? | | ?????????????????????????????????????????????????? | | ?????????????????????????????????????????????????? | | ??????????????###????????????????????????????????? | | ??????????????# ? ?????????????????????????????? | | ??????????????# "????????????????????????????? | | ??????????????# """??????????????????????????? | | ????????????????[ R"??????????????????????????? | | ####????????????? """??????????????????????????? | | ?????????????? ?#########################? | | ??????????????#????] ?# # #? | | ??###?????????# ???? ?# # """ """ T #? | | ## ???#######+#####/## # """ """ #? | | ??? #@ # """ """ #? | | ???? Y """ """ # #? | | ???? # """ """ # #? | | ##"?????????######## # """ """ ####+####+#####? | | #?????????????????# # ??# #??? | | ##?????????????????# ##########??# ! #??? | | #?????????????????#k #########???# """ "#??? | | #?????????????????# # !!! ##### """ "#??? | | #?????????????????# # !! ## ## "" "#??? | | ##########?????????# # ! # T#### | | +?????????# / + "# | | #####???????????# # ## # "# | | #???????????????# ###### ## " " | | #???????????????# #### # # " | | #???????????????# " | | ################# | | """T""" | | ######## ## ## ### | | #???#% """ ########+###### # ### | | ##### """ #??? # # # ### | | # ! """ #??"""" ! # #? | | #####! #??"""" ## # #? | | / % = % #????"" # #? | | #####+ "T"###### #???? ""T" ## ##? | | ###### #"""#????# #????? """" = #? | +----------------------------------------------------+ Best States ------------- Heat Dissipation 38 Energy Generation 10 Energy Capacity 250 Matter Stores 300 Matter Capacity 300 Sight Range 16 Robot Scan Range 15 Terrain Scan Range 16 Terrain Scan Density 10 Armor Coverage 305 Weapon Shielding 33 Evasion (%) 42 Targeting Accuracy 5 Recoil Reduction 2 Item Schematics ----------------- None Robot Schematics ------------------ None Fabricated ------------ Nothing Alien Tech Used ----------------- None Achievements -------------- None Challenges ------------ None Game ------ Seed ExplosiveNavigationPit Manual? 0 Play Time 00:18:12 Cumulative 30.6 hours Start 2024.05.03 @ 11:37:44 End 2024.05.03 @ 11:52:48 Sessions 1 Manual Loads 0 Difficulty Rogue Special Mode None Game No. 85 Rogue 83 Adventurer 2 Explorer 0 Win Type - Total 0 Types 0/0/0/0/0/0/0/0/0 Lore% 22 Gallery% 32 Achievement% 23 Wizard Run 0 Options --------- Layout 1 ASCII 0 Keyboard 0 Movement Mouse Keybinds 0 Fullscreen 1 Font 16/SmallcapsGlow Map View 55x38 Zoom Use 5% Tactical HUD 0 Map Filters NONE Filters NONE Steam 1 RUN: db5aaeb5-dbd5-4438-93ba-d9af9ee44611